Workbook

Sheet Sheet1
B2: 角間隔 | C2: 10
C3: 波形１ | D3: 波形２ | E3: 波形３ | F3: 合成波形
B4: 周波数比 | C4: 1 | D4: 1.5 | E4: 1 | F4: ＳＵＭ
B5: 成分量比 | C5: 1 | D5: 1 | E5: 0 | F5: 1
B6: 線 | C6: 1 | D6: 2 | E6: 3 | F6: 4
B7: 色 | C7: =nRGB(C10,C11,C12) -> 15132390 | D7: =nRGB(D10,D11,D12) -> 15132390 | E7: =nRGB(E10,E11,E12) -> 15132390 | F7: =nRGB(F10,F11,F12) -> 255
B8: 太さ | C8: 1 | D8: 1 | E8: 1 | F8: 1
B9: Sheet1 | C9: =Linecolor($B$9,C6,C7,C8) -> 15132390 | D9: =Linecolor($B$9,D6,D7,D8) -> 15132390 | E9: =Linecolor($B$9,E6,E7,E8) -> 15132390 | F9: =Linecolor($B$9,F6,F7,F8) -> 255
B10: R | C10: 230 | D10: 230 | E10: 230 | F10: 255
B11: G | C11: 230 | D11: 230 | E11: 230 | F11: 0
B12: B | C12: 230 | D12: 230 | E12: 230 | F12: 0
B15: 0 | C15: =SIN(RADIANS($B15*C$4))*C$5 -> 0 | D15: 0 | E15: 0 | F15: =SUM(C15:E15)*F$5 -> 0
B16: =B15+$C$2 -> 10 | C16: 0.1736481777 | D16: 0.2588190451 | E16: 0 | F16: =SUM(C16:E16)*F$5 -> 0.4324672228
B17: 20 | C17: 0.3420201433 | D17: 0.5 | E17: 0 | F17: 0.8420201433
B18: 30 | C18: 0.5 | D18: 0.7071067812 | E18: 0 | F18: 1.207106781
B19: 40 | C19: 0.6427876097 | D19: 0.8660254038 | E19: 0 | F19: 1.508813013
B20: 50 | C20: 0.7660444431 | D20: 0.9659258263 | E20: 0 | F20: 1.731970269
B21: 60 | C21: 0.8660254038 | D21: 1 | E21: 0 | F21: 1.866025404
B22: 70 | C22: 0.9396926208 | D22: 0.9659258263 | E22: 0 | F22: 1.905618447
B23: 80 | C23: 0.984807753 | D23: 0.8660254038 | E23: 0 | F23: 1.850833157
B24: 90 | C24: 1 | D24: 0.7071067812 | E24: 0 | F24: 1.707106781
B25: 100 | C25: 0.984807753 | D25: 0.5 | E25: 0 | F25: 1.484807753
B26: 110 | C26: 0.9396926208 | D26: 0.2588190451 | E26: 0 | F26: 1.198511666
B27: 120 | C27: 0.8660254038 | D27: 1.225148455e-16 | E27: 0 | F27: 0.8660254038
B28: 130 | C28: 0.7660444431 | D28: -0.2588190451 | E28: 0 | F28: 0.507225398
B29: 140 | C29: 0.6427876097 | D29: -0.5 | E29: 0 | F29: 0.1427876097
B30: 150 | C30: 0.5 | D30: -0.7071067812 | E30: 0 | F30: -0.2071067812
B31: 160 | C31: 0.3420201433 | D31: -0.8660254038 | E31: 0 | F31: -0.5240052605
B32: 170 | C32: 0.1736481777 | D32: -0.9659258263 | E32: 0 | F32: -0.7922776486
B33: 180 | C33: 1.225148455e-16 | D33: -1 | E33: 0 | F33: -1
B34: 190 | C34: -0.1736481777 | D34: -0.9659258263 | E34: 0 | F34: -1.139574004
B35: 200 | C35: =SIN(RADIANS($B35*C$4))*C$5 -> -0.3420201433 | D35: -0.8660254038 | E35: 0 | F35: -1.208045547
B36: 210 | C36: -0.5 | D36: -0.7071067812 | E36: 0 | F36: -1.207106781
B37: 220 | C37: -0.6427876097 | D37: -0.5 | E37: 0 | F37: -1.14278761
B38: 230 | C38: -0.7660444431 | D38: -0.2588190451 | E38: 0 | F38: -1.024863488
B39: 240 | C39: -0.8660254038 | D39: -2.45029691e-16 | E39: 0 | F39: -0.8660254038
B40: 250 | C40: -0.9396926208 | D40: 0.2588190451 | E40: 0 | F40: -0.6808735757
B41: 260 | C41: -0.984807753 | D41: 0.5 | E41: 0 | F41: -0.484807753
B42: 270 | C42: -1 | D42: 0.7071067812 | E42: 0 | F42: -0.2928932188
B43: 280 | C43: -0.984807753 | D43: 0.8660254038 | E43: 0 | F43: -0.1187823492
B44: 290 | C44: -0.9396926208 | D44: 0.9659258263 | E44: 0 | F44: 0.0262332055
B45: 300 | C45: -0.8660254038 | D45: 1 | E45: 0 | F45: 0.1339745962
B46: 310 | C46: -0.7660444431 | D46: 0.9659258263 | E46: 0 | F46: 0.1998813832
B47: 320 | C47: -0.6427876097 | D47: 0.8660254038 | E47: 0 | F47: 0.2232377941
B48: =B47+$C$2 -> 330 | C48: -0.5 | D48: 0.7071067812 | E48: 0 | F48: 0.2071067812
B49: 340 | C49: -0.3420201433 | D49: 0.5 | E49: 0 | F49: 0.1579798567
B50: 350 | C50: -0.1736481777 | D50: 0.2588190451 | E50: 0 | F50: 0.08517086744
B51: 360 | C51: -2.45029691e-16 | D51: 3.675445365e-16 | E51: 0 | F51: 1.225148455e-16
B52: 370 | C52: 0.1736481777 | D52: -0.2588190451 | E52: 0 | F52: -0.08517086744
B53: 380 | C53: 0.3420201433 | D53: -0.5 | E53: 0 | F53: -0.1579798567
B54: 390 | C54: 0.5 | D54: -0.7071067812 | E54: 0 | F54: -0.2071067812
B55: 400 | C55: =SIN(RADIANS($B55*C$4))*C$5 -> 0.6427876097 | D55: -0.8660254038 | E55: 0 | F55: -0.2232377941
B56: 410 | C56: 0.7660444431 | D56: -0.9659258263 | E56: 0 | F56: -0.1998813832
B57: 420 | C57: 0.8660254038 | D57: -1 | E57: 0 | F57: -0.1339745962
B58: 430 | C58: 0.9396926208 | D58: -0.9659258263 | E58: 0 | F58: -0.0262332055
B59: 440 | C59: 0.984807753 | D59: -0.8660254038 | E59: 0 | F59: 0.1187823492
B60: 450 | C60: 1 | D60: -0.7071067812 | E60: 0 | F60: 0.2928932188
B61: 460 | C61: 0.984807753 | D61: -0.5 | E61: 0 | F61: 0.484807753
B62: 470 | C62: 0.9396926208 | D62: -0.2588190451 | E62: 0 | F62: 0.6808735757
B63: 480 | C63: 0.8660254038 | D63: -4.90059382e-16 | E63: 0 | F63: 0.8660254038
B64: 490 | C64: 0.7660444431 | D64: 0.2588190451 | E64: 0 | F64: 1.024863488
B65: 500 | C65: 0.6427876097 | D65: 0.5 | E65: 0 | F65: 1.14278761
B66: 510 | C66: 0.5 | D66: 0.7071067812 | E66: 0 | F66: 1.207106781
B67: 520 | C67: 0.3420201433 | D67: 0.8660254038 | E67: 0 | F67: 1.208045547
B68: 530 | C68: 0.1736481777 | D68: 0.9659258263 | E68: 0 | F68: 1.139574004
B69: 540 | C69: 3.675445365e-16 | D69: 1 | E69: 0 | F69: 1
B70: 550 | C70: -0.1736481777 | D70: 0.9659258263 | E70: 0 | F70: 0.7922776486
B71: 560 | C71: -0.3420201433 | D71: 0.8660254038 | E71: 0 | F71: 0.5240052605
B72: 570 | C72: -0.5 | D72: 0.7071067812 | E72: 0 | F72: 0.2071067812
B73: 580 | C73: -0.6427876097 | D73: 0.5 | E73: 0 | F73: -0.1427876097
B74: 590 | C74: -0.7660444431 | D74: 0.2588190451 | E74: 0 | F74: -0.507225398
B75: 600 | C75: =SIN(RADIANS($B75*C$4))*C$5 -> -0.8660254038 | D75: 6.125742275e-16 | E75: 0 | F75: -0.8660254038
B76: 610 | C76: -0.9396926208 | D76: -0.2588190451 | E76: 0 | F76: -1.198511666
B77: 620 | C77: -0.984807753 | D77: -0.5 | E77: 0 | F77: -1.484807753
B78: 630 | C78: -1 | D78: -0.7071067812 | E78: 0 | F78: -1.707106781
B79: 640 | C79: -0.984807753 | D79: -0.8660254038 | E79: 0 | F79: -1.850833157
B80: =B79+$C$2 -> 650 | C80: -0.9396926208 | D80: -0.9659258263 | E80: 0 | F80: =SUM(C80:E80)*F$5 -> -1.905618447
B81: 660 | C81: -0.8660254038 | D81: -1 | E81: 0 | F81: =SUM(C81:E81)*F$5 -> -1.866025404
B82: 670 | C82: -0.7660444431 | D82: -0.9659258263 | E82: 0 | F82: =SUM(C82:E82)*F$5 -> -1.731970269
B83: 680 | C83: -0.6427876097 | D83: -0.8660254038 | E83: 0 | F83: =SUM(C83:E83)*F$5 -> -1.508813013
B84: 690 | C84: -0.5 | D84: -0.7071067812 | E84: 0 | F84: =SUM(C84:E84)*F$5 -> -1.207106781
B85: 700 | C85: -0.3420201433 | D85: -0.5 | E85: 0 | F85: -0.8420201433
B86: 710 | C86: -0.1736481777 | D86: -0.2588190451 | E86: 0 | F86: -0.4324672228
B87: 720 | C87: -4.90059382e-16 | D87: -7.350890729e-16 | E87: 0 | F87: -1.225148455e-15
B88: 730 | C88: 0.1736481777 | D88: 0.2588190451 | E88: 0 | F88: 0.4324672228
B89: 740 | C89: 0.3420201433 | D89: 0.5 | E89: 0 | F89: 0.8420201433
B90: 750 | C90: 0.5 | D90: 0.7071067812 | E90: 0 | F90: 1.207106781
B91: 760 | C91: 0.6427876097 | D91: 0.8660254038 | E91: 0 | F91: 1.508813013
B92: 770 | C92: 0.7660444431 | D92: 0.9659258263 | E92: 0 | F92: 1.731970269
B93: 780 | C93: 0.8660254038 | D93: 1 | E93: 0 | F93: 1.866025404
B94: 790 | C94: 0.9396926208 | D94: 0.9659258263 | E94: 0 | F94: 1.905618447
B95: 800 | C95: =SIN(RADIANS($B95*C$4))*C$5 -> 0.984807753 | D95: 0.8660254038 | E95: 0 | F95: 1.850833157
B96: 810 | C96: 1 | D96: 0.7071067812 | E96: 0 | F96: 1.707106781
B97: 820 | C97: 0.984807753 | D97: 0.5 | E97: 0 | F97: 1.484807753
B98: 830 | C98: 0.9396926208 | D98: 0.2588190451 | E98: 0 | F98: 1.198511666
B99: 840 | C99: 0.8660254038 | D99: 8.576039184e-16 | E99: 0 | F99: 0.8660254038
B100: 850 | C100: 0.7660444431 | D100: -0.2588190451 | E100: 0 | F100: 0.507225398
B101: 860 | C101: 0.6427876097 | D101: -0.5 | E101: 0 | F101: 0.1427876097
B102: 870 | C102: 0.5 | D102: -0.7071067812 | E102: 0 | F102: -0.2071067812
B103: 880 | C103: 0.3420201433 | D103: -0.8660254038 | E103: 0 | F103: -0.5240052605
B104: 890 | C104: 0.1736481777 | D104: -0.9659258263 | E104: 0 | F104: -0.7922776486
B105: 900 | C105: 6.125742275e-16 | D105: -1 | E105: 0 | F105: -1
B106: 910 | C106: -0.1736481777 | D106: -0.9659258263 | E106: 0 | F106: -1.139574004
B107: 920 | C107: -0.3420201433 | D107: -0.8660254038 | E107: 0 | F107: -1.208045547
B108: 930 | C108: -0.5 | D108: -0.7071067812 | E108: 0 | F108: -1.207106781
B109: 940 | C109: -0.6427876097 | D109: -0.5 | E109: 0 | F109: -1.14278761
B110: 950 | C110: -0.7660444431 | D110: -0.2588190451 | E110: 0 | F110: -1.024863488
B111: 960 | C111: -0.8660254038 | D111: -9.801187639e-16 | E111: 0 | F111: -0.8660254038
B112: =B111+$C$2 -> 970 | C112: -0.9396926208 | D112: 0.2588190451 | E112: 0 | F112: -0.6808735757
B113: 980 | C113: -0.984807753 | D113: 0.5 | E113: 0 | F113: -0.484807753
B114: 990 | C114: -1 | D114: 0.7071067812 | E114: 0 | F114: -0.2928932188
B115: 1000 | C115: =SIN(RADIANS($B115*C$4))*C$5 -> -0.984807753 | D115: 0.8660254038 | E115: 0 | F115: -0.1187823492
B116: 1010 | C116: -0.9396926208 | D116: 0.9659258263 | E116: 0 | F116: 0.0262332055
B117: 1020 | C117: -0.8660254038 | D117: 1 | E117: 0 | F117: 0.1339745962
B118: 1030 | C118: -0.7660444431 | D118: 0.9659258263 | E118: 0 | F118: 0.1998813832
B119: 1040 | C119: -0.6427876097 | D119: 0.8660254038 | E119: 0 | F119: 0.2232377941
B120: 1050 | C120: -0.5 | D120: 0.7071067812 | E120: 0 | F120: 0.2071067812
B121: 1060 | C121: -0.3420201433 | D121: 0.5 | E121: 0 | F121: 0.1579798567
B122: 1070 | C122: -0.1736481777 | D122: 0.2588190451 | E122: 0 | F122: 0.08517086744
B123: 1080 | C123: -7.350890729e-16 | D123: 1.102633609e-15 | E123: 0 | F123: 3.675445365e-16
B124: 1090 | C124: 0.1736481777 | D124: -0.2588190451 | E124: 0 | F124: -0.08517086744
B125: 1100 | C125: 0.3420201433 | D125: -0.5 | E125: 0 | F125: -0.1579798567
B126: 1110 | C126: 0.5 | D126: -0.7071067812 | E126: 0 | F126: -0.2071067812
B127: 1120 | C127: 0.6427876097 | D127: -0.8660254038 | E127: 0 | F127: -0.2232377941
B128: 1130 | C128: 0.7660444431 | D128: -0.9659258263 | E128: 0 | F128: -0.1998813832
B129: 1140 | C129: 0.8660254038 | D129: -1 | E129: 0 | F129: -0.1339745962
B130: 1150 | C130: 0.9396926208 | D130: -0.9659258263 | E130: 0 | F130: -0.0262332055
B131: 1160 | C131: 0.984807753 | D131: -0.8660254038 | E131: 0 | F131: 0.1187823492
B132: 1170 | C132: 1 | D132: -0.7071067812 | E132: 0 | F132: 0.2928932188
B133: 1180 | C133: 0.984807753 | D133: -0.5 | E133: 0 | F133: 0.484807753
B134: 1190 | C134: 0.9396926208 | D134: -0.2588190451 | E134: 0 | F134: 0.6808735757
B135: 1200 | C135: =SIN(RADIANS($B135*C$4))*C$5 -> 0.8660254038 | D135: -1.225148455e-15 | E135: 0 | F135: 0.8660254038
B136: 1210 | C136: 0.7660444431 | D136: 0.2588190451 | E136: 0 | F136: 1.024863488
B137: 1220 | C137: 0.6427876097 | D137: 0.5 | E137: 0 | F137: 1.14278761
B138: 1230 | C138: 0.5 | D138: 0.7071067812 | E138: 0 | F138: 1.207106781
B139: 1240 | C139: 0.3420201433 | D139: 0.8660254038 | E139: 0 | F139: 1.208045547
B140: 1250 | C140: 0.1736481777 | D140: 0.9659258263 | E140: 0 | F140: 1.139574004
B141: 1260 | C141: 8.576039184e-16 | D141: 1 | E141: 0 | F141: 1
B142: 1270 | C142: -0.1736481777 | D142: 0.9659258263 | E142: 0 | F142: 0.7922776486
B143: 1280 | C143: -0.3420201433 | D143: 0.8660254038 | E143: 0 | F143: 0.5240052605
B144: =B143+$C$2 -> 1290 | C144: -0.5 | D144: 0.7071067812 | E144: 0 | F144: 0.2071067812
B145: 1300 | C145: -0.6427876097 | D145: 0.5 | E145: 0 | F145: -0.1427876097
B146: 1310 | C146: -0.7660444431 | D146: 0.2588190451 | E146: 0 | F146: -0.507225398
B147: 1320 | C147: -0.8660254038 | D147: -2.205050378e-15 | E147: 0 | F147: -0.8660254038
B148: 1330 | C148: -0.9396926208 | D148: -0.2588190451 | E148: 0 | F148: =SUM(C148:E148)*F$5 -> -1.198511666
B149: 1340 | C149: -0.984807753 | D149: -0.5 | E149: 0 | F149: -1.484807753
B150: 1350 | C150: -1 | D150: -0.7071067812 | E150: 0 | F150: -1.707106781
B151: 1360 | C151: -0.984807753 | D151: -0.8660254038 | E151: 0 | F151: -1.850833157
B152: 1370 | C152: -0.9396926208 | D152: -0.9659258263 | E152: 0 | F152: -1.905618447
B153: 1380 | C153: -0.8660254038 | D153: -1 | E153: 0 | F153: -1.866025404
B154: 1390 | C154: -0.7660444431 | D154: -0.9659258263 | E154: 0 | F154: -1.731970269
B155: 1400 | C155: =SIN(RADIANS($B155*C$4))*C$5 -> -0.6427876097 | D155: -0.8660254038 | E155: 0 | F155: =SUM(C155:E155)*F$5 -> -1.508813013
B156: 1410 | C156: -0.5 | D156: -0.7071067812 | E156: 0 | F156: =SUM(C156:E156)*F$5 -> -1.207106781
B157: 1420 | C157: -0.3420201433 | D157: -0.5 | E157: 0 | F157: =SUM(C157:E157)*F$5 -> -0.8420201433
B158: 1430 | C158: -0.1736481777 | D158: -0.2588190451 | E158: 0 | F158: =SUM(C158:E158)*F$5 -> -0.4324672228
B159: 1440 | C159: -9.801187639e-16 | D159: -1.470178146e-15 | E159: 0 | F159: =SUM(C159:E159)*F$5 -> -2.45029691e-15
B160: 1450 | C160: 0.1736481777 | D160: 0.2588190451 | E160: 0 | F160: 0.4324672228
B161: 1460 | C161: 0.3420201433 | D161: 0.5 | E161: 0 | F161: 0.8420201433
B162: 1470 | C162: 0.5 | D162: 0.7071067812 | E162: 0 | F162: 1.207106781
B163: 1480 | C163: 0.6427876097 | D163: 0.8660254038 | E163: 0 | F163: 1.508813013
B164: 1490 | C164: 0.7660444431 | D164: 0.9659258263 | E164: 0 | F164: 1.731970269
B165: 1500 | C165: 0.8660254038 | D165: 1 | E165: 0 | F165: 1.866025404
B166: 1510 | C166: 0.9396926208 | D166: 0.9659258263 | E166: 0 | F166: =SUM(C166:E166)*F$5 -> 1.905618447
B167: 1520 | C167: 0.984807753 | D167: 0.8660254038 | E167: 0 | F167: 1.850833157
B168: 1530 | C168: 1 | D168: 0.7071067812 | E168: 0 | F168: 1.707106781
B169: 1540 | C169: 0.984807753 | D169: 0.5 | E169: 0 | F169: 1.484807753
B170: 1550 | C170: 0.9396926208 | D170: 0.2588190451 | E170: 0 | F170: 1.198511666
B171: 1560 | C171: =SIN(RADIANS($B171*C$4))*C$5 -> 0.8660254038 | D171: -1.960020687e-15 | E171: 0 | F171: 0.8660254038
B172: 1570 | C172: 0.7660444431 | D172: -0.2588190451 | E172: 0 | F172: 0.507225398
B173: 1580 | C173: 0.6427876097 | D173: -0.5 | E173: 0 | F173: 0.1427876097
B174: 1590 | C174: 0.5 | D174: -0.7071067812 | E174: 0 | F174: -0.2071067812
B175: 1600 | C175: 0.3420201433 | D175: -0.8660254038 | E175: 0 | F175: -0.5240052605
B176: 1610 | C176: 0.1736481777 | D176: -0.9659258263 | E176: 0 | F176: -0.7922776486
B177: 1620 | C177: 1.102633609e-15 | D177: -1 | E177: 0 | F177: -1
B178: 1630 | C178: -0.1736481777 | D178: -0.9659258263 | E178: 0 | F178: -1.139574004
B179: 1640 | C179: -0.3420201433 | D179: -0.8660254038 | E179: 0 | F179: -1.208045547
B180: 1650 | C180: -0.5 | D180: -0.7071067812 | E180: 0 | F180: -1.207106781
B181: 1660 | C181: -0.6427876097 | D181: -0.5 | E181: 0 | F181: -1.14278761
B182: 1670 | C182: -0.7660444431 | D182: -0.2588190451 | E182: 0 | F182: -1.024863488
B183: 1680 | C183: -0.8660254038 | D183: -1.715207837e-15 | E183: 0 | F183: -0.8660254038
B184: 1690 | C184: -0.9396926208 | D184: 0.2588190451 | E184: 0 | F184: -0.6808735757
B185: 1700 | C185: -0.984807753 | D185: 0.5 | E185: 0 | F185: -0.484807753
B186: 1710 | C186: -1 | D186: 0.7071067812 | E186: 0 | F186: -0.2928932188
B187: 1720 | C187: -0.984807753 | D187: 0.8660254038 | E187: 0 | F187: -0.1187823492
B188: 1730 | C188: -0.9396926208 | D188: 0.9659258263 | E188: 0 | F188: 0.0262332055
B189: 1740 | C189: -0.8660254038 | D189: 1 | E189: 0 | F189: 0.1339745962
B190: 1750 | C190: -0.7660444431 | D190: 0.9659258263 | E190: 0 | F190: 0.1998813832
B191: 1760 | C191: =SIN(RADIANS($B191*C$4))*C$5 -> -0.6427876097 | D191: 0.8660254038 | E191: 0 | F191: 0.2232377941
B192: 1770 | C192: -0.5 | D192: 0.7071067812 | E192: 0 | F192: 0.2071067812
B193: 1780 | C193: -0.3420201433 | D193: 0.5 | E193: 0 | F193: 0.1579798567
B194: 1790 | C194: -0.1736481777 | D194: 0.2588190451 | E194: 0 | F194: 0.08517086744
B195: 1800 | C195: -1.225148455e-15 | D195: -1.714990996e-15 | E195: 0 | F195: -2.940139451e-15
B196: 1810 | C196: 0.1736481777 | D196: -0.2588190451 | E196: 0 | F196: -0.08517086744
B197: 1820 | C197: 0.3420201433 | D197: -0.5 | E197: 0 | F197: -0.1579798567
B198: 1830 | C198: 0.5 | D198: -0.7071067812 | E198: 0 | F198: -0.2071067812
B199: 1840 | C199: 0.6427876097 | D199: -0.8660254038 | E199: 0 | F199: -0.2232377941
B200: 1850 | C200: 0.7660444431 | D200: -0.9659258263 | E200: 0 | F200: -0.1998813832
B201: 1860 | C201: 0.8660254038 | D201: -1 | E201: 0 | F201: -0.1339745962
B202: 1870 | C202: 0.9396926208 | D202: -0.9659258263 | E202: 0 | F202: -0.0262332055
B203: 1880 | C203: 0.984807753 | D203: -0.8660254038 | E203: 0 | F203: 0.1187823492
... 412 more rows
